bitfinex-derivatives/quotes_ETHF0:USTF0_20251226
["timestamp","ask_amount","ask_price","bid_price","bid_amount"]
[1766735837720,0.00421934,2955.7,2954.3,0.79877396]
[1766735838125,0.00421934,2955.7,2954.0,3.52745172]
[1766735838322,0.00421934,2955.7,2953.5,0.16942]
[1766735838526,0.00507441,2954.9,2953.5,0.16942]
[1766735839723,0.00507441,2954.9,2953.7,0.79877396]
[1766735839925,0.00421934,2955.7,2953.7,0.79877396]
[1766735841028,0.00507441,2955.0,2953.7,0.79877396]
[1766735841223,0.00507441,2955.0,2953.6,0.16941]
[1766735841424,0.00507441,2955.0,2953.6,0.96818396]
[1766735842831,0.00421934,2955.7,2954.0,0.79877396]
[1766735843826,0.00507441,2955.1,2954.0,0.79877396]
[1766735845826,0.00421934,2955.7,2954.1,0.16939]
[1766735847026,0.00421934,2955.7,2954.2,0.16938]
[1766735847427,0.00421934,2955.7,2954.4,0.79877396]
[1766735847740,0.00421934,2955.7,2954.2,0.16938]
[1766735852027,0.00421934,2955.7,2953.9,4.689]
[1766735852241,1.31279318,2955.8,2954.5,0.16936]
[1766735852641,1.05289318,2955.8,2954.7,0.16935]
[1766735852838,0.16923,2956.9,2955.0,0.00507441]
[1766735853043,1.38307641,2956.3,2955.0,0.00507441]
[1766735853543,0.00253241,2956.3,2955.1,0.16933]
[1766735856238,10.35075386,2957.0,2955.1,0.16933]
[1766735856438,0.9229602,2956.9,2955.1,0.16933]
[1766735856638,0.92289382,2956.8,2955.0,0.00507441]
[1766735856848,0.92288371,2956.7,2955.0,0.00507441]
[1766735857146,10.51997386,2957.0,2955.0,0.00507441]
[1766735857346,0.92288093,2956.9,2955.0,0.00507441]
[1766735857548,0.92288093,2956.8,2955.0,0.00507441]
[1766735857751,10.52399895,2957.0,2955.0,0.00507441]
[1766735858045,10.52399895,2957.0,2955.0,0.90207441]
[1766735858439,10.52399895,2957.0,2955.0,0.00507441]
[1766735858640,10.52399895,2957.0,2955.0,4.86140441]
[1766735858840,10.35477895,2957.0,2955.2,0.16932]
[1766735859042,10.35477895,2957.0,2955.2,0.00387558]
[1766735859234,10.35477895,2957.0,2955.5,0.16931]
[1766735859437,10.35477895,2957.0,2955.3,3.72036574]
[1766735859641,10.25507895,2957.0,2955.3,3.72036574]
[1766735859842,0.00402509,2957.0,2955.3,3.72036574]
[1766735860044,0.00402509,2957.0,2955.4,4.687]
[1766735860239,0.00402509,2957.0,2955.5,4.686]
[1766735860444,0.00402509,2957.0,2955.5,8.53889554]
[1766735860646,0.00402509,2957.0,2955.7,0.16929]
[1766735860851,0.00402509,2957.0,2955.7,4.85729]
[1766735861251,0.00402509,2957.0,2955.7,0.16929]
[1766735861451,0.00402509,2957.0,2955.3,6.34714202]
[1766735861452,0.00402509,2957.0,2955.5,4.688]
[1766735861849,0.00402509,2957.0,2955.3,6.34714202]
[1766735862155,0.00402509,2957.0,2955.4,4.688]
[1766735865147,0.00402509,2957.0,2955.4,4.85731]
[1766735865347,0.00402509,2957.0,2955.5,0.16931]
[1766735866751,0.00402509,2957.0,2955.6,4.692]
[1766735867257,0.00402509,2957.0,2955.7,4.692]
[1766735868344,0.00402509,2957.0,2955.5,0.16931]
[1766735868750,0.00402509,2957.0,2955.6,2.025]
[1766735872655,0.00402509,2957.0,2955.6,2.1943]
[1766735873168,1.41676721,2958.0,2956.0,0.16928]
[1766735873363,1.41676721,2958.0,2956.7,0.00507441]
[1766735874163,1.42024443,2958.0,2956.7,0.00507441]
[1766735875956,0.00347722,2958.0,2956.7,0.00507441]
[1766735876156,0.00347722,2958.0,2956.8,0.16923]
[1766735877069,1.4241431,2958.7,2956.9,1.15151441]
[1766735877576,1.4241431,2958.7,2956.8,3.79447749]
[1766735877868,1.58524703,2959.0,2956.7,0.00507441]
[1766735878167,0.92110619,2958.9,2956.7,0.00507441]
[1766735878367,0.16913,2958.7,2956.7,0.00507441]
[1766735879652,0.92112795,2958.6,2956.7,0.00507441]
[1766735879856,1.58922948,2959.0,2956.7,0.00507441]
[1766735880068,0.9135624,2958.9,2956.7,0.17431441]
[1766735880271,1.58922948,2959.0,2956.8,0.16923]
[1766735881366,0.91417006,2958.9,2956.8,0.16923]
[1766735881568,1.58922948,2959.0,2956.8,0.16923]
[1766735881768,0.16912,2958.8,2956.8,0.16923]
[1766735881968,0.16912,2958.8,2956.7,0.00507441]
[1766735881969,1.15151441,2958.5,2956.7,0.00507441]
[1766735882171,2.33255009,2958.4,2956.7,0.00507441]
[1766735882374,0.91403116,2958.3,2956.7,0.00507441]
[1766735882670,0.0050744,2957.8,2955.8,0.16928]
[1766735883675,0.0050744,2957.8,2956.5,0.00507441]
[1766735897488,0.1742544,2957.8,2956.5,0.00507441]
[1766735898492,0.1742544,2957.8,2955.8,0.16929]
[1766735898493,0.16918,2957.7,2955.8,0.16929]
[1766735899878,1.15151441,2957.4,2955.2,0.17319558]
[1766735900288,0.16921,2957.2,2955.2,0.17319558]
[1766735900489,0.16921,2957.1,2955.2,0.17319558]
[1766735900790,0.16921,2957.1,2955.9,0.00507441]
[1766735901678,0.16921,2957.1,2955.2,0.17319558]
[1766735902685,0.16921,2957.1,2955.9,0.00507441]
[1766735903587,0.16011,2957.1,2955.9,0.00507441]
[1766735904183,40.8,2957.3,2955.9,0.00507441]
[1766735904482,1.4634673,2957.4,2955.9,0.00507441]
[1766735913392,1.6326673,2957.4,2955.9,0.00507441]
[1766735916695,0.16922,2957.1,2955.2,0.00387558]
[1766735916892,0.029,2957.0,2955.2,0.00387558]
[1766735917194,0.16922,2957.1,2955.2,0.00387558]
[1766735917590,0.16922,2957.0,2955.2,0.00387558]
[1766735917798,0.16922,2957.0,2955.8,0.00507441]
[1766735917981,0.16922,2957.0,2955.2,0.00387558]
[1766735918687,0.16925,2956.5,2955.2,0.00387558]
[1766735918894,0.00507441,2956.1,2955.2,0.00387558]
[1766735923199,0.00266753,2956.5,2955.2,0.00387558]
[1766735924197,0.00266753,2956.5,2955.6,0.0050744]
[1766735925299,0.00507441,2956.3,2955.6,0.0050744]
[1766735932508,0.00266753,2956.5,2955.6,0.0050744]
[1766735933706,0.00507441,2956.3,2955.6,0.0050744]
[1766735940908,1.48833169,2956.7,2955.6,0.0050744]
[1766735942116,0.00507441,2956.4,2955.6,0.0050744]
[1766735942609,1.49258082,2956.7,2955.6,0.0050744]
[1766735943614,0.00507441,2956.4,2955.6,0.0050744]
[1766735946818,1.49258082,2956.7,2955.6,0.0050744]
[1766735947714,0.00338304,2956.4,2955.6,0.0050744]
[1766735948221,1.49258082,2956.7,2955.6,0.0050744]
[1766735959217,0.00424913,2956.7,2955.6,0.1743744]
[1766735962023,1.59962455,2957.9,2955.8,0.16929]
[1766735962810,1.434825,2957.9,2955.6,0.0050744]
[1766735963016,1.434825,2957.9,2956.0,0.16927]
[1766735963211,1.434825,2957.9,2956.1,0.16927]
[1766735965326,6.387,2958.9,2955.6,0.0050744]
[1766735965327,0.11729044,2959.0,2956.5,1.30507215]
[1766735965516,0.28640044,2959.0,2957.5,0.00507441]
[1766735965926,0.16911,2958.9,2956.7,1.929]
[1766735966320,0.17292081,2958.9,2956.7,0.00341637]
[1766735966514,0.16913,2958.6,2956.7,0.00341637]
[1766735966920,0.0050744,2957.9,2956.7,0.00341637]
[1766735968018,0.0050744,2957.9,2957.0,0.00507441]
[1766735969524,0.0050744,2957.9,2956.7,0.00341637]
[1766735969525,0.0050744,2957.9,2956.7,1.637e-05]
[1766735970531,0.0050744,2957.9,2957.0,0.00507441]
[1766735971527,0.0050744,2957.9,2956.7,1.637e-05]
[1766735972523,0.0050744,2957.9,2957.0,0.00507441]
[1766735972723,0.0050744,2957.9,2956.7,1.637e-05]
[1766735973932,0.0050744,2957.9,2957.0,0.00507441]
[1766735974520,0.0050744,2957.9,2956.7,1.637e-05]
[1766735975326,0.1742444,2957.9,2956.7,1.637e-05]
[1766735975527,0.16918,2957.8,2957.0,0.00338304]
[1766735975833,0.16918,2957.8,2956.7,1.637e-05]
[1766735984239,0.16921,2957.3,2955.3,3.20739703]
[1766735984539,0.16921,2957.2,2955.3,0.16932]
[1766735985344,0.16921,2957.2,2955.3,0.17247567]
[1766735991350,0.16918,2957.8,2956.2,1.15106107]
[1766735991547,0.0050744,2957.9,2955.3,0.00315567]
[1766735991747,0.16919,2957.6,2955.3,4.48515567]
[1766735992152,0.16919,2957.5,2955.3,0.00315567]
[1766735992454,0.16919,2957.5,2955.4,0.16931]
[1766735995150,0.16919,2957.5,2955.5,0.16931]
[1766735996049,0.79957608,2957.4,2955.9,0.79957608]
[1766735996247,0.79957608,2957.4,2955.5,0.16931]
[1766735996448,0.79957608,2957.4,2955.8,0.79957608]
[1766735996844,0.0050744,2957.9,2957.0,0.79957608]
[1766735997056,0.79957608,2957.7,2956.0,0.16928]
[1766735997250,0.0050744,2957.9,2956.0,0.16928]
[1766735997553,0.0050744,2957.9,2956.2,0.79957608]
[1766735997752,0.79957608,2957.8,2956.2,0.79957608]
[1766735998054,0.79957608,2957.8,2956.3,0.79957608]
[1766735998754,0.80465048,2957.9,2956.3,0.79957608]
[1766736000257,0.0050744,2957.9,2956.0,0.16928]
[1766736000649,0.0050744,2957.9,2955.6,1.572]
[1766736000856,0.16918,2957.8,2955.5,4.668]
[1766736001055,0.16918,2957.7,2955.4,0.16931]
[1766736002361,0.16919,2957.6,2955.4,0.16931]
[1766736003259,0.16921,2957.2,2955.3,0.00315567]
[1766736003449,0.16923,2956.8,2955.3,0.00315567]
[1766736003654,0.00507441,2956.3,2955.3,0.00315567]
[1766736005363,0.16928,2956.0,2951.0,8.10886134]
[1766736005565,4.41e-06,2953.8,2953.3,0.16943]
[1766736005763,0.1693,2955.7,2953.4,0.786]
[1766736005952,0.1693,2955.7,2953.4,3.82029126]
[1766736006158,0.1693,2955.7,2953.5,0.855]
[1766736006362,0.17309357,2955.7,2953.5,0.855]
[1766736006665,0.00507441,2954.9,2954.3,0.00507]
[1766736007360,0.00379357,2955.7,2954.3,6.00507]
[1766736007664,0.00379357,2955.7,2954.3,0.00507]
[1766736007860,0.00379357,2955.7,2954.4,4.67]
[1766736008163,6.315,2957.2,2954.4,8.5339294]
[1766736008358,0.00507441,2956.1,2954.4,3.8639294]
[1766736008667,0.00507441,2956.1,2954.4,0.16937]
[1766736008864,0.00507441,2956.1,2954.5,3.83]
[1766736009065,0.00854448,2956.1,2954.4,0.16937]
[1766736009257,0.00854448,2956.1,2954.5,0.172]
[1766736011663,0.00854448,2956.1,2954.6,4.669]
[1766736011968,0.00854448,2956.1,2954.4,0.16937]
[1766736012470,0.00854448,2956.1,2954.3,0.00507]
[1766736013368,0.1693,2955.7,2954.3,0.00507]
[1766736013569,0.00854448,2956.1,2954.3,0.00507]
[1766736014970,0.00854448,2956.1,2954.5,0.16936]
[1766736015172,0.00854448,2956.1,2954.6,3.586]
[1766736015370,0.16922,2957.0,2954.6,3.586]
[1766736015674,0.16922,2957.0,2954.7,3.66029839]
[1766736015975,0.16922,2957.0,2954.8,3.624]
[1766736016274,0.16922,2957.0,2954.9,3.52401543]
[1766736016467,0.00507441,2956.2,2954.9,3.52401543]
[1766736016668,0.17165282,2957.0,2954.9,3.52401543]
[1766736016868,0.17165282,2957.0,2954.9,3.69335543]
[1766736017068,0.00243282,2957.0,2955.2,0.16932]
[1766736017274,0.00243282,2957.0,2955.3,0.16932]
[1766736017477,3.282e-05,2957.0,2955.6,0.1693]
[1766736017680,3.282e-05,2957.0,2955.9,0.00507441]
[1766736018574,3.282e-05,2957.0,2955.9,0.00818004]
[1766736019676,40.8,2958.7,2955.9,0.00818004]
[1766736019888,0.067,2958.8,2955.9,0.17746004]
[1766736020774,0.07082507,2958.8,2955.9,0.17746004]
[1766736021376,0.16916,2958.2,2955.9,0.17746004]
[1766736022277,0.07082507,2958.8,2956.0,3.68145804]
[1766736022578,0.07082507,2958.8,2956.1,2.285]
[1766736022782,0.16914,2958.5,2956.1,1.382]
[1766736023586,0.16914,2958.5,2956.1,1.55127]
[1766736024282,0.07082507,2958.8,2956.1,1.382]
[1766736024494,0.00382507,2958.8,2956.4,0.16925]
[1766736024980,0.00382507,2958.8,2956.5,4.09054001]
[1766736025180,0.00382507,2958.8,2956.5,3.92129001]
[1766736025380,0.00382507,2958.8,2956.3,3.92129001]
[1766736025586,0.00382507,2958.8,2956.1,1.382]
[1766736025988,0.00382507,2958.8,2956.4,3.89724655]
[1766736026189,0.00382507,2958.8,2956.5,4.666]
[1766736026489,0.00382507,2958.8,2956.7,0.16924]
[1766736026683,0.00382507,2958.8,2957.5,0.00507441]
[1766736028483,0.16904,2960.2,2957.5,0.00507441]
[1766736028989,0.16904,2960.2,2957.6,3.78389279]
[1766736029382,0.17274078,2960.2,2957.6,3.78389279]
[1766736029577,0.17274078,2960.2,2957.7,4.665]
[1766736030392,0.17274078,2960.2,2957.8,0.16917]
[1766736030589,0.00370078,2960.2,2957.5,0.00507441]
[1766736030792,0.16909,2959.4,2957.5,0.00507441]
[1766736030985,0.00370078,2960.2,2957.5,0.00507441]
[1766736031384,0.16909,2959.3,2957.5,0.00507441]
[1766736039199,47.089,2960.1,2957.5,0.00507441]
[1766736039200,0.16905,2960.0,2957.5,0.00507441]
[1766736039400,47.089,2960.1,2957.5,0.00507441]
[1766736039401,0.16906,2959.8,2957.5,0.00507441]
[1766736040601,0.16906,2959.8,2957.5,0.17426441]
[1766736040801,0.16906,2959.8,2957.6,3.8329946]
[1766736041000,0.16906,2959.8,2957.7,0.829]
[1766736042200,0.16906,2959.8,2957.8,0.16917]
[1766736042699,0.00370078,2960.2,2957.7,0.829]
[1766736042908,0.00370078,2960.2,2957.9,0.16917]
[1766736043400,0.00370078,2960.2,2958.0,3.534]
[1766736043603,0.00370078,2960.2,2958.0,3.5380282]
[1766736043797,0.00370078,2960.2,2958.1,0.16915]
[1766736043997,0.00370078,2960.2,2958.1,3.7015349]
[1766736044203,0.00370078,2960.2,2958.5,0.16913]
[1766736044398,0.00370078,2960.2,2959.1,0.00507441]
[1766736045702,0.0050744,2959.9,2958.1,3.7015349]
[1766736046000,0.0050744,2959.9,2958.1,0.16916]
[1766736046200,0.0050744,2959.9,2958.2,0.16915]
[1766736046393,0.0050744,2959.9,2958.4,0.16914]
[1766736046598,0.0050744,2959.9,2958.2,3.70744167]
[1766736046799,0.0050744,2959.9,2958.8,0.00507441]
[1766736047707,0.00370078,2960.2,2958.8,0.17418441]
[1766736048294,0.00370078,2960.2,2958.9,2.506]
[1766736048499,0.00370078,2960.2,2958.8,0.17418441]
[1766736050805,10.123,2961.1,2959.0,0.16911]
[1766736051003,0.029,2961.0,2959.1,0.236]
[1766736051308,0.029,2961.4,2959.1,0.236]
[1766736051509,0.029,2961.4,2958.8,0.00507441]
[1766736051913,0.0323964,2961.4,2958.8,0.00507441]
[1766736052109,0.029,2961.3,2958.8,0.00507441]
[1766736052408,0.16901,2960.8,2958.8,4.66307441]
[1766736052801,0.16901,2960.8,2958.8,0.00507441]
[1766736053008,0.16901,2960.8,2958.9,4.658]
[1766736053914,0.16901,2960.8,2958.8,0.00507441]
[1766736054101,0.16901,2960.8,2958.8,4.66307441]
[1766736055002,0.16901,2960.8,2958.8,4.83218441]
[1766736055210,0.16901,2960.8,2958.8,0.17418441]
[1766736055415,0.16901,2960.8,2958.9,0.93]
[1766736055710,0.0033964,2961.4,2958.9,4.54145088]
[1766736056216,0.0033964,2961.4,2959.1,0.1691]
[1766736056912,0.0033964,2961.4,2959.3,0.16909]
[1766736057111,0.0033964,2961.4,2959.5,0.16908]
[1766736057715,0.0033964,2961.4,2959.6,0.16907]
[1766736058009,0.0033964,2961.4,2959.4,3.54963015]
[1766736058010,0.0033964,2961.4,2959.7,0.16906]
[1766736058211,0.0033964,2961.4,2959.7,3.75360424]
[1766736058509,10.123,2962.3,2960.2,0.16904]
[1766736058709,6.264,2963.2,2959.1,1.49074422]
[1766736058710,16.387,2963.2,2961.0,0.00506543]
[1766736058911,0.16892,2962.4,2961.0,0.00506543]
[1766736059411,0.16893,2962.2,2959.8,0.16906]
[1766736059611,0.16893,2962.2,2959.9,0.507]
[1766736060105,0.16893,2962.2,2959.9,0.67605]
[1766736060306,0.00359007,2962.4,2960.3,0.16903]
[1766736060507,0.00503545,2961.6,2961.1,0.00506543]
[1766736061014,0.00359007,2962.4,2961.1,0.00506543]
[1766736062618,6.00359007,2962.4,2960.3,0.00326192]
[1766736062916,0.00359007,2962.4,2960.3,0.00326192]
[1766736063506,0.00506543,2961.6,2960.3,0.00326192]
[1766736063714,0.00506543,2961.6,2959.2,0.16909]
[1766736063921,0.00506543,2961.6,2959.2,0.74609]
[1766736064414,0.00506543,2961.6,2960.1,0.00506543]
[1766736064825,0.00506543,2961.6,2960.1,0.0080596]
[1766736065433,0.16897,2961.4,2960.1,0.0080596]
[1766736067830,0.00506543,2961.6,2960.1,0.0080596]
[1766736069135,0.00359007,2962.4,2960.1,0.1770896]
[1766736069433,0.00359007,2962.4,2960.4,0.16901]
[1766736069820,0.00359007,2962.4,2960.5,3.70797574]
[1766736070128,0.00359007,2962.4,2960.8,0.16899]
[1766736070329,0.00359007,2962.4,2960.6,4.034]
[1766736070528,0.00359007,2962.4,2960.9,0.16898]
[1766736071631,0.00359007,2962.4,2960.7,3.86103039]
[1766736071632,0.16884,2963.4,2961.0,3.60965939]
[1766736071826,0.16884,2963.4,2961.9,0.00506543]
[1766736072735,0.17220314,2963.4,2961.9,0.00506543]
[1766736074133,0.00336314,2963.4,2961.9,0.00506543]
[1766736075429,0.16886,2963.1,2961.9,0.00506543]
[1766736078933,0.00336314,2963.4,2960.2,0.16902]
[1766736079127,0.1689,2962.4,2960.2,0.16902]
[1766736079834,0.1689,2962.3,2959.8,0.08475205]
[1766736080131,0.00506543,2961.5,2960.9,0.00506543]
[1766736083142,0.16891,2962.2,2960.9,0.00506543]
[1766736086239,6.233,2963.2,2960.9,0.00506543]
[1766736086449,0.029,2963.1,2960.9,0.00506543]
[1766736086742,40.8,2963.0,2960.9,0.00506543]
[1766736086943,0.029,2963.1,2960.9,0.00506543]
[1766736087556,0.16888,2962.7,2960.9,0.00506543]
[1766736089742,0.00336314,2963.4,2960.9,0.17404543]
[1766736090240,0.16885,2963.3,2961.0,3.91382524]
[1766736091650,0.16885,2963.3,2961.1,0.16897]
[1766736091849,0.16885,2963.3,2961.2,4.648]
[1766736092148,0.16885,2963.3,2961.2,8.50786254]
[1766736092448,0.16885,2963.3,2961.1,4.81697]
[1766736093250,0.16885,2963.3,2961.2,0.16896]
[1766736093746,0.16885,2963.3,2961.3,4.648]
[1766736094442,0.16885,2963.3,2961.2,0.16896]
[1766736094649,0.16885,2963.3,2961.2,4.81696]
[1766736094854,0.16885,2963.3,2961.2,0.16896]
[1766736095042,0.16885,2963.3,2961.3,4.647]
[1766736095242,0.00336314,2963.4,2961.4,0.16895]
[1766736095544,0.00336314,2963.4,2961.3,8.36983844]
[1766736095545,0.00336314,2963.4,2961.7,0.16893]
[1766736096146,0.00336314,2963.4,2961.8,0.16893]
[1766736096549,0.00336314,2963.4,2962.0,0.16892]
[1766736096748,0.00336314,2963.4,2962.4,0.00506543]
[1766736096943,0.2130195,2964.4,2962.4,0.00911104]
[1766736097852,0.2130195,2964.4,2962.5,3.564]
[1766736098144,0.21628453,2964.4,2962.5,4.647]
[1766736100150,0.21628453,2964.4,2962.7,0.16888]
[1766736100343,0.21628453,2964.4,2962.8,4.646]
[1766736100649,0.21628453,2964.4,2962.5,3.55983953]
[1766736100844,0.1688,2964.1,2962.4,0.00911104]
[1766736102444,0.21628453,2964.4,2962.5,4.645]
[1766736102649,0.21628453,2964.4,2962.4,0.00911104]
[1766736103149,0.1688,2964.1,2962.4,0.00911104]
[1766736103350,0.1688,2964.0,2962.4,0.00911104]
[1766736107150,0.21628453,2964.4,2962.4,0.00911104]
[1766736107943,0.16879,2964.2,2962.4,0.00911104]
[1766736108150,0.21628453,2964.4,2962.4,0.00911104]
[1766736108455,0.16881,2963.9,2962.4,0.00911104]
[1766736110045,0.16882,2963.8,2962.4,0.00911104]
[1766736111855,0.16884,2963.5,2961.4,1.041]
[1766736112653,0.00506543,2962.7,2962.2,0.00506543]
[1766736120865,0.00506543,2962.7,2961.4,4.6463277]
[1766736121263,0.00506543,2962.7,2961.4,4.8152777]
[1766736121566,10.123,2963.6,2961.5,0.16895]
[1766736121767,0.16882,2963.8,2961.5,0.16895]
[1766736122162,0.16882,2963.8,2961.4,4.6463277]
[1766736122471,0.029,2964.2,2962.3,0.00506543]
[1766736122663,0.16879,2964.3,2962.3,0.00506543]
[1766736124472,0.21628453,2964.4,2962.4,3.45989]
[1766736125472,0.38506453,2964.4,2962.4,3.45989]
[1766736125873,0.38506453,2964.4,2962.4,0.16889]
[1766736126175,0.38506453,2964.4,2962.5,1.973]
[1766736128060,0.38506453,2964.4,2962.4,0.16889]
[1766736128268,0.38506453,2964.4,2962.5,4.64]
[1766736128468,0.38506453,2964.4,2962.4,4.64]
[1766736128769,0.38506453,2964.4,2962.3,0.00506543]
[1766736128770,0.16879,2964.3,2962.3,0.00506543]
[1766736133281,0.16879,2964.3,2962.3,0.17396543]
[1766736133776,0.21628453,2964.4,2962.5,0.16889]
[1766736134482,0.21628453,2964.4,2962.6,2.82]
[1766736137385,0.21628453,2964.4,2962.5,0.16889]
[1766736137684,0.21628453,2964.4,2962.6,4.638]
[1766736138386,0.38506453,2964.4,2962.6,4.638]
[1766736139084,0.16879,2964.3,2962.3,0.00506543]
[1766736139283,0.16879,2964.3,2962.4,4.638]
[1766736139883,0.16879,2964.3,2962.3,4.64306543]
[1766736143381,0.21628453,2964.4,2962.3,0.00506543]
[1766736143584,0.16882,2963.8,2962.3,0.00506543]
[1766736144089,2.369,2964.1,2962.3,0.00506543]
[1766736144388,0.16884,2963.4,2962.3,0.00506543]
[1766736144789,0.16884,2963.4,2961.5,1.47999751]
[1766736145790,0.00506543,2962.7,2961.4,0.0043277]
[1766736146783,0.00506543,2962.7,2961.8,0.00506543]
[1766736147590,0.00506543,2962.7,2961.4,0.0043277]
[1766736148587,0.00506543,2962.7,2961.8,0.00506543]
[1766736148888,0.00506543,2962.7,2961.4,0.0043277]
[1766736149994,0.00506543,2962.7,2961.8,0.00506543]
[1766736151794,0.00506543,2962.7,2961.4,0.0043277]
[1766736152794,0.00506543,2962.7,2961.8,0.00506543]
[1766736154894,0.17394543,2962.7,2961.8,0.00506543]
[1766736155099,0.17394543,2962.7,2961.4,0.0043277]
[1766736155996,0.17394543,2962.7,2961.8,0.00337694]
[1766736158997,0.00506543,2962.7,2961.8,0.00337694]
[1766736159497,0.16884,2963.3,2961.8,0.00337694]
[1766736160198,0.21628453,2964.4,2961.8,0.00337694]
[1766736160398,0.16881,2964.0,2961.8,0.00337694]
[1766736160598,0.21628453,2964.4,2962.0,0.16892]
[1766736161196,0.16879,2964.2,2962.0,0.16892]
[1766736161390,0.16881,2964.0,2961.8,0.00337694]
[1766736161594,0.00506543,2963.2,2961.8,0.00337694]
[1766736166610,0.16879,2964.3,2961.8,0.00337694]
[1766736167110,0.16879,2964.3,2961.8,0.17230694]
[1766736167301,0.16879,2964.3,2962.1,0.16891]
[1766736167502,0.00506543,2963.5,2962.1,0.16891]
[1766736168406,0.16879,2964.3,2962.2,0.16891]
[1766736168601,0.21628453,2964.4,2962.5,0.16889]
[1766736168806,0.21628453,2964.4,2962.6,1.477]
[1766736169311,0.21628453,2964.4,2962.5,0.16889]
[1766736169507,0.00506543,2963.7,2962.7,2.259]
[1766736169815,0.21628453,2964.4,2962.7,2.259]
[1766736170110,0.38506453,2964.4,2962.2,4.634]
[1766736170505,0.21628453,2964.4,2962.0,3.53963353]
[1766736170709,0.00506543,2963.5,2962.0,4.634]
[1766736171614,0.00506543,2963.5,2961.9,0.16892]
[1766736175425,0.00506543,2963.5,2962.0,4.00336087]
[1766736175722,0.1688,2964.0,2962.0,0.16892]
[1766736177322,0.21628453,2964.4,2962.1,0.16891]
[1766736177723,0.21628453,2964.4,2962.2,1.461]
[1766736179431,0.21628453,2964.4,2962.2,1.62991]
[1766736179632,0.21628453,2964.4,2962.2,1.461]
[1766736180434,0.38506453,2964.4,2962.4,0.16889]
[1766736181021,0.16881,2964.0,2961.8,0.17230694]
[1766736181233,0.16881,2964.0,2961.9,0.794]
[1766736184934,0.21628453,2964.4,2961.8,0.00337694]
[1766736184935,0.029,2963.9,2961.8,0.00337694]
[1766736185133,0.16882,2963.7,2961.8,0.00337694]
[1766736186831,6.157,2964.0,2961.8,0.00337694]
[1766736187227,0.16885,2963.3,2961.8,0.00337694]
[1766736187428,0.21628453,2964.4,2961.8,0.00337694]
[1766736187933,40.8,2964.3,2961.8,0.00337694]
[1766736188529,0.16882,2963.8,2961.8,0.00337694]
[1766736190031,0.16882,2963.7,2961.8,0.00337694]
[1766736191734,0.16883,2963.6,2961.8,0.00337694]
[1766736192634,40.8,2964.3,2961.8,0.00337694]
[1766736192831,0.16883,2963.6,2961.8,0.00337694]
[1766736196435,0.16879,2964.2,2962.0,0.16892]
[1766736196631,0.16879,2964.2,2962.2,0.16891]
[1766736197528,0.21628453,2964.4,2961.9,3.55784923]
[1766736197838,0.21628453,2964.4,2961.8,0.00337694]
[1766736197839,0.21628453,2964.4,2962.5,0.16889]
[1766736198135,0.21628453,2964.4,2962.5,4.70689]
[1766736199532,0.21628453,2964.4,2962.6,0.16888]
[1766736199737,0.21628453,2964.4,2962.8,0.16887]
[1766736199936,0.21628453,2964.4,2963.3,0.00506543]
[1766736201842,0.17872,2965.5,2963.4,3.60054346]
[1766736202045,0.01,2965.5,2963.4,3.76938346]
[1766736202246,0.01,2965.5,2963.8,0.16881]
[1766736202445,0.01,2965.5,2963.8,4.79681]
[1766736202646,0.01437789,2965.5,2963.8,4.80067993]
[1766736203047,0.01437789,2965.5,2963.9,3.87912121]
[1766736203950,0.01437789,2965.5,2963.9,4.1580216]
[1766736204152,0.01437789,2965.5,2964.1,0.1688]
[1766736204537,0.01437789,2965.5,2964.2,3.62551736]
[1766736204744,0.16865,2966.7,2964.3,4.629]
[1766736205050,0.16865,2966.7,2965.2,0.00506543]
[1766736205646,0.00430001,2966.7,2965.2,0.00506543]
[1766736209060,0.00430001,2966.7,2965.2,0.17379543]
[1766736209756,0.00430001,2966.7,2965.3,0.16873]
[1766736209951,0.16859,2967.7,2965.5,0.16872]
[1766736210852,0.1686,2967.6,2965.2,0.00506543]
[1766736211060,0.16861,2967.4,2965.2,0.00506543]
[1766736211256,0.16862,2967.3,2965.2,0.00506543]
[1766736211561,0.00361413,2967.6,2965.3,3.59303602]
[1766736211756,0.00361413,2967.6,2965.4,0.16872]
[1766736212157,0.16861,2967.4,2965.2,0.00506543]
[1766736212460,0.16862,2967.3,2965.2,0.00506543]
[1766736212862,0.16862,2967.2,2965.2,0.00506543]
[1766736214460,0.16863,2967.1,2965.2,0.00506543]
[1766736220569,0.16864,2967.0,2965.2,0.00506543]
[1766736220866,0.029,2966.9,2965.2,0.00506543]
[1766736222575,0.16866,2966.6,2965.2,0.00506543]
[1766736223467,6.146,2966.9,2965.2,0.00506543]
[1766736223666,0.029,2966.9,2965.2,0.00506543]
[1766736225571,0.16863,2967.1,2965.2,0.17379543]
[1766736225776,0.00361413,2967.6,2965.4,0.16872]
[1766736225975,0.00361413,2967.6,2965.5,0.16872]
[1766736226174,0.00361413,2967.6,2965.3,3.8873457]
[1766736226378,0.00361413,2967.6,2966.3,0.16867]
[1766736226579,0.00361413,2967.6,2966.3,0.17259549]
[1766736226780,0.00361413,2967.6,2966.4,0.16866]
[1766736226982,0.00361413,2967.6,2966.7,0.00505655]
[1766736227381,0.16854,2968.7,2966.7,0.00505655]
[1766736227781,0.16854,2968.6,2966.7,0.00505655]
[1766736228279,0.21064732,2968.9,2966.7,0.00505655]
[1766736228479,0.21371101,2968.9,2966.7,0.00505655]
[1766736229179,0.16854,2968.7,2966.7,0.00505655]
[1766736229584,0.21371101,2968.9,2966.7,0.00505655]
[1766736229785,0.21371101,2968.9,2967.1,0.16863]
[1766736229987,0.21371101,2968.9,2967.3,0.16862]
[1766736230383,0.21371101,2968.9,2967.4,3.68871197]
[1766736230688,0.21371101,2968.9,2966.7,1.14770757]
[1766736230987,0.21371101,2968.9,2967.0,0.16863]
[1766736231380,0.21371101,2968.9,2967.1,3.89214156]
[1766736231582,0.21371101,2968.9,2967.2,1.31127102]
[1766736231788,0.21371101,2968.9,2967.4,0.16861]
[1766736232485,0.21371101,2968.9,2966.7,0.17370655]
[1766736232988,0.21371101,2968.9,2966.9,0.16864]
[1766736233295,0.21371101,2968.9,2967.1,0.16863]
[1766736233482,0.21371101,2968.9,2967.2,0.16862]
[1766736234693,0.21371101,2968.9,2967.3,0.16861]
[1766736234880,0.21371101,2968.9,2967.4,0.16861]
[1766736235085,0.21371101,2968.9,2967.5,0.1686]
[1766736235480,0.21371101,2968.9,2967.6,0.1686]